[Event "*** Titled Tuesday Blitz"]
[Site "Chess.com"]
[Date "2020.05.05"]
[Round "8"]
[White "White_Ghost"]
[Black "Rafael_Ventura"]
[Result "1/2-1/2"]
[WhiteElo "2450"]
[BlackElo "2305"]
[TimeControl "180+1"]
[EndTime "11:36:29 PDT"]
[Termination "Game drawn by agreement"]

1. d4 {[%clk 0:03:00.9]} 1... Nf6 {[%clk 0:02:59.1]} 2. c4 {[%clk 0:03:00.2]}
2... e6 {[%clk 0:02:56.2]} 3. Nf3 {[%clk 0:03:00.3]} 3... Bb4+ {[%clk
0:02:56.4]} 4. Bd2 {[%clk 0:03:00]} 4... Qe7 {[%clk 0:02:55.5]} 5. g3 {[%clk
0:03:00]} 5... O-O {[%clk 0:02:55.2]} 6. Bg2 {[%clk 0:03:00.3]} 6... Bxd2+
{[%clk 0:02:52.3]} 7. Qxd2 {[%clk 0:02:56.9]} 7... a5 {[%clk 0:02:52.4]} 8. Nc3
{[%clk 0:02:56.4]} 8... d6 {[%clk 0:02:52.4]} 9. O-O {[%clk 0:02:55.9]} 9... e5
{[%clk 0:02:49.9]} 10. d5 {[%clk 0:02:53.7]} 10... Na6 {[%clk 0:02:48]} 11. e4
{[%clk 0:02:52.5]} 11... Nc5 {[%clk 0:02:44.5]} 12. Ne1 {[%clk 0:02:52.2]} 12...
Nh5 {[%clk 0:02:45]} 13. Nd3 {[%clk 0:02:49.6]} 13... b6 {[%clk 0:02:45.2]} 14.
Rae1 {[%clk 0:02:46.1]} 14... g6 {[%clk 0:02:40.2]} 15. f4 {[%clk 0:02:42.5]}
15... f6 {[%clk 0:02:35.1]} 16. Rf2 {[%clk 0:02:19.1]} 16... Bd7 {[%clk
0:02:33.8]} 17. Ref1 {[%clk 0:02:17.7]} 17... a4 {[%clk 0:02:24.5]} 18. Nxc5
{[%clk 0:02:13.2]} 18... bxc5 {[%clk 0:02:23.3]} 19. Qe2 {[%clk 0:02:02.7]}
19... Rab8 {[%clk 0:02:08.6]} 20. f5 {[%clk 0:01:54.2]} 20... Ng7 {[%clk
0:02:06.2]} 21. g4 {[%clk 0:01:50.1]} 21... g5 {[%clk 0:02:06]} 22. Bf3 {[%clk
0:01:47.1]} 22... Kf7 {[%clk 0:02:04.5]} 23. Qd3 {[%clk 0:01:45.7]} 23... Rh8
{[%clk 0:01:56.6]} 24. Bd1 {[%clk 0:01:45.2]} 24... Qe8 {[%clk 0:01:52.5]} 25.
Kg2 {[%clk 0:01:40.7]} 25... h5 {[%clk 0:01:51]} 26. h3 {[%clk 0:01:40.8]} 26...
h4 {[%clk 0:01:37.9]} 27. a3 {[%clk 0:01:20.1]} 27... Rb6 {[%clk 0:01:34.1]} 28.
Rd2 {[%clk 0:01:16.3]} 28... Qa8 {[%clk 0:01:30.6]} 29. Rff2 {[%clk 0:01:16]}
29... Rhb8 {[%clk 0:01:30.4]} 30. Qc2 {[%clk 0:01:08.8]} 30... Rb3 {[%clk
0:01:23.1]} 31. Qc1 {[%clk 0:01:06]} 31... R3b6 {[%clk 0:01:17.2]} 32. Be2
{[%clk 0:00:50.3]} 32... Rb3 {[%clk 0:01:05.7]} 33. Nb5 {[%clk 0:00:34.4]} 33...
Rg3+ {[%clk 0:01:01.4]} 34. Kh2 {[%clk 0:00:34]} 34... Bxb5 {[%clk 0:01:01.5]}
35. cxb5 {[%clk 0:00:33.8]} 35... Qa5 {[%clk 0:01:01.3]} 36. Qc2 {[%clk
0:00:25.3]} 36... Ne8 {[%clk 0:00:57.2]} 37. Bc4 {[%clk 0:00:25.2]} 37... Ke7
{[%clk 0:00:47.8]} 38. Rd3 {[%clk 0:00:25.2]} 38... Rxd3 {[%clk 0:00:46.6]} 39.
Qxd3 {[%clk 0:00:25.7]} 39... Rb6 {[%clk 0:00:44.3]} 40. Qc3 {[%clk 0:00:22.9]}
40... Qxc3 {[%clk 0:00:28]} 41. bxc3 {[%clk 0:00:22.6]} 41... c6 {[%clk
0:00:28.6]} 42. dxc6 {[%clk 0:00:17.9]} 42... Nc7 {[%clk 0:00:28.9]} 43. Rb2
{[%clk 0:00:18.4]} 43... d5 {[%clk 0:00:28]} 44. Bd3 {[%clk 0:00:15.1]} 44... d4
{[%clk 0:00:25.6]} 45. c4 {[%clk 0:00:15.1]} 45... Ne8 {[%clk 0:00:24.2]} 46.
Kg2 {[%clk 0:00:14.8]} 46... Kd6 {[%clk 0:00:24.3]} 47. Kf3 {[%clk 0:00:15.7]}
47... Kc7 {[%clk 0:00:24.6]} 48. Bc2 {[%clk 0:00:15.8]} 48... Nd6 {[%clk
0:00:23.6]} 49. Bd3 {[%clk 0:00:16.2]} 49... Rb8 {[%clk 0:00:22.5]} 50. Ke2
{[%clk 0:00:16.1]} 50... Kb6 {[%clk 0:00:23]} 51. Rc2 {[%clk 0:00:14.9]} 51...
Ra8 {[%clk 0:00:22.9]} 52. Rc1 {[%clk 0:00:15.2]} 52... Rc8 {[%clk 0:00:21.2]}
53. Kf3 {[%clk 0:00:15.4]} 53... Ra8 {[%clk 0:00:21.4]} 54. Bf1 {[%clk
0:00:15.7]} 54... Rb8 {[%clk 0:00:20.6]} 55. Bg2 {[%clk 0:00:16]} 55... Ra8
{[%clk 0:00:21]} 56. Ke2 {[%clk 0:00:16.5]} 56... Rb8 {[%clk 0:00:21.4]} 57. Kd3
{[%clk 0:00:17]} 57... Ra8 {[%clk 0:00:21.7]} 58. Bf3 {[%clk 0:00:17.5]} 58...
Ra5 {[%clk 0:00:21.8]} 59. Rb1 {[%clk 0:00:17.8]} 59... Ra8 {[%clk 0:00:21.9]}
60. Bg2 {[%clk 0:00:17.4]} 60... Ra7 {[%clk 0:00:22.4]} 61. Bf3 {[%clk
0:00:17.7]} 61... Ra8 {[%clk 0:00:22.9]} 62. Be2 {[%clk 0:00:14.7]} 62... Ra7
{[%clk 0:00:22.8]} 63. Bd1 {[%clk 0:00:15.2]} 63... Ra8 {[%clk 0:00:22.4]} 64.
c7 {[%clk 0:00:14.2]} 64... Kxc7 {[%clk 0:00:21.2]} 65. Bf3 {[%clk 0:00:14.3]}
65... Kb6 {[%clk 0:00:21.1]} 66. Be2 {[%clk 0:00:14.7]} 66... Ra7 {[%clk
0:00:21.6]} 67. Bd1 {[%clk 0:00:13.4]} 1/2-1/2

[Event "*** Titled Tuesday Blitz"]
[Site "Chess.com"]
[Date "2020.05.05"]
[Round "8"]
[White "PSvidler"]
[Black "AVolodin"]
[Result "1-0"]
[WhiteElo "3012"]
[BlackElo "2671"]
[TimeControl "180+1"]
[EndTime "11:36:30 PDT"]
[Termination "PSvidler won by resignation"]

1. e4 {[%clk 0:03:00.9]} 1... c5 {[%clk 0:02:58.8]} 2. Nf3 {[%clk 0:03:00.7]}
2... Nc6 {[%clk 0:02:56.8]} 3. Bb5 {[%clk 0:02:59.6]} 3... e6 {[%clk 0:02:55]}
4. O-O {[%clk 0:02:59.2]} 4... Nge7 {[%clk 0:02:48.7]} 5. Re1 {[%clk 0:02:58.5]}
5... Qc7 {[%clk 0:02:48.6]} 6. c3 {[%clk 0:02:56.4]} 6... a6 {[%clk 0:02:48.9]}
7. Bf1 {[%clk 0:02:56.2]} 7... d5 {[%clk 0:02:49.3]} 8. e5 {[%clk 0:02:44]} 8...
b5 {[%clk 0:02:45.9]} 9. d4 {[%clk 0:02:43.4]} 9... c4 {[%clk 0:02:36.1]} 10. a4
{[%clk 0:02:30.4]} 10... Bb7 {[%clk 0:02:29.2]} 11. b4 {[%clk 0:02:30.2]} 11...
h5 {[%clk 0:02:13.4]} 12. Na3 {[%clk 0:02:18.7]} 12... Qb6 {[%clk 0:02:10.6]}
13. g3 {[%clk 0:02:18.5]} 13... Nf5 {[%clk 0:02:07.8]} 14. Bh3 {[%clk
0:02:18.3]} 14... g6 {[%clk 0:02:05.6]} 15. Bg5 {[%clk 0:02:15.6]} 15... Be7
{[%clk 0:02:04.8]} 16. Bxe7 {[%clk 0:02:15.1]} 16... Ncxe7 {[%clk 0:02:04.6]}
17. Qd2 {[%clk 0:02:14.6]} 17... bxa4 {[%clk 0:01:54.8]} 18. Nc2 {[%clk
0:01:56.5]} 18... Bc6 {[%clk 0:01:53.1]} 19. Reb1 {[%clk 0:01:56.1]} 19... Rb8
{[%clk 0:01:33.3]} 20. Ng5 {[%clk 0:01:50.9]} 20... h4 {[%clk 0:01:09.7]} 21. g4
{[%clk 0:01:50.3]} 21... Nh6 {[%clk 0:01:03.9]} 22. Ne3 {[%clk 0:01:45.4]} 22...
Kd7 {[%clk 0:01:00]} 23. f4 {[%clk 0:01:39.5]} 23... a5 {[%clk 0:00:54.2]} 24.
Nc2 {[%clk 0:01:33.4]} 24... axb4 {[%clk 0:00:52.5]} 25. Nxb4 {[%clk 0:01:32.7]}
25... Qa7 {[%clk 0:00:46.9]} 26. Qf2 {[%clk 0:01:31.6]} 26... a3 {[%clk
0:00:42.5]} 27. Ra2 {[%clk 0:01:22.3]} 27... Rb5 {[%clk 0:00:37.2]} 28. Rba1
{[%clk 0:01:20.8]} 28... Ra5 {[%clk 0:00:36.5]} 29. Qxh4 {[%clk 0:01:20.6]}
29... Qa8 {[%clk 0:00:28.8]} 30. Qe1 {[%clk 0:01:17.8]} 30... Rb8 {[%clk
0:00:24.7]} 31. Qc1 {[%clk 0:01:15.7]} 31... Rb7 {[%clk 0:00:20.9]} 32. Rxa3
{[%clk 0:01:15.6]} 32... Rba7 {[%clk 0:00:21]} 33. Rxa5 {[%clk 0:01:14.1]} 33...
Rxa5 {[%clk 0:00:21.9]} 34. Rxa5 {[%clk 0:01:13.7]} 34... Qxa5 {[%clk
0:00:22.8]} 35. Qb2 {[%clk 0:01:13.5]} 35... Qa4 {[%clk 0:00:21.3]} 36. Kf2
{[%clk 0:01:10.2]} 36... Qd1 {[%clk 0:00:20.9]} 37. Nf3 {[%clk 0:01:10]} 37...
Ba4 {[%clk 0:00:17.7]} 38. Kg3 {[%clk 0:01:05]} 38... Bb3 {[%clk 0:00:16.9]} 39.
Bg2 {[%clk 0:01:04.8]} 39... Nc6 {[%clk 0:00:11.3]} 40. Nxc6 {[%clk 0:01:04.1]}
40... Kxc6 {[%clk 0:00:12.2]} 41. h3 {[%clk 0:01:04.3]} 41... Ng8 {[%clk
0:00:12]} 42. Qa3 {[%clk 0:01:03.2]} 42... Kd7 {[%clk 0:00:10.9]} 43. Qd6+
{[%clk 0:01:01.2]} 43... Ke8 {[%clk 0:00:10.5]} 44. Qb8+ {[%clk 0:01:01.2]}
44... Ke7 {[%clk 0:00:10.2]} 45. Qxg8 {[%clk 0:01:01.7]} 45... Qc1 {[%clk
0:00:10.9]} 46. Ng5 {[%clk 0:00:59.1]} 46... Qe3+ {[%clk 0:00:10.4]} 47. Nf3
{[%clk 0:00:54.8]} 47... Qxc3 {[%clk 0:00:09.1]} 48. f5 {[%clk 0:00:55.1]} 48...
exf5 {[%clk 0:00:07.3]} 49. gxf5 {[%clk 0:00:54.2]} 49... gxf5 {[%clk
0:00:07.7]} 50. Qg5+ {[%clk 0:00:54.2]} 50... Ke8 {[%clk 0:00:08]} 51. Qxf5
{[%clk 0:00:54.3]} 51... Qe3 {[%clk 0:00:08.3]} 52. Qf4 {[%clk 0:00:50.5]} 52...
Qd3 {[%clk 0:00:05.9]} 53. Qd2 {[%clk 0:00:49.1]} 53... Qg6+ {[%clk 0:00:05.2]}
54. Kf2 {[%clk 0:00:48.6]} 54... Qf5 {[%clk 0:00:04.7]} 55. Qc3 {[%clk
0:00:47.5]} 55... Bc2 {[%clk 0:00:04.8]} 56. Qe3 {[%clk 0:00:43.6]} 56... Be4
{[%clk 0:00:05.1]} 57. Kg3 {[%clk 0:00:43.7]} 57... Qg6+ {[%clk 0:00:05.1]} 58.
Kh2 {[%clk 0:00:44]} 58... Qc6 {[%clk 0:00:05.7]} 59. h4 {[%clk 0:00:43.2]}
59... c3 {[%clk 0:00:05.9]} 60. Ne1 {[%clk 0:00:40.5]} 60... Bxg2 {[%clk
0:00:04.9]} 61. Kxg2 {[%clk 0:00:40.1]} 61... c2 {[%clk 0:00:05.3]} 62. Qc1
{[%clk 0:00:40.2]} 62... Qg6+ {[%clk 0:00:05.2]} 63. Kf2 {[%clk 0:00:40.1]}
63... Qf5+ {[%clk 0:00:04.8]} 64. Ke2 {[%clk 0:00:37.4]} 64... Qg4+ {[%clk
0:00:03.5]} 65. Kd3 {[%clk 0:00:36.5]} 65... Qe4+ {[%clk 0:00:03.2]} 66. Kc3
{[%clk 0:00:36.5]} 66... Qxh4 {[%clk 0:00:03.2]} 67. Nxc2 {[%clk 0:00:36.6]}
67... Qe4 {[%clk 0:00:02.5]} 68. Qe3 {[%clk 0:00:36.4]} 68... Qg6 {[%clk
0:00:03.1]} 69. Nb4 {[%clk 0:00:35.5]} 1-0

[Event "*** Titled Tuesday Blitz"]
[Site "Chess.com"]
[Date "2020.05.05"]
[Round "8"]
[White "konradrutkowski"]
[Black "GMJustin"]
[Result "1-0"]
[WhiteElo "2210"]
[BlackElo "2361"]
[TimeControl "180+1"]
[EndTime "11:36:31 PDT"]
[Termination "konradrutkowski won on time"]

1. e4 {[%clk 0:03:00.9]} 1... c5 {[%clk 0:02:50]} 2. Nf3 {[%clk 0:03:00.9]} 2...
d6 {[%clk 0:02:49.4]} 3. d4 {[%clk 0:03:01.4]} 3... cxd4 {[%clk 0:02:49.3]} 4.
Nxd4 {[%clk 0:03:02.3]} 4... Nf6 {[%clk 0:02:49.4]} 5. Nc3 {[%clk 0:03:02.9]}
5... a6 {[%clk 0:02:49.8]} 6. Bc4 {[%clk 0:03:02.3]} 6... e6 {[%clk 0:02:48.6]}
7. Bb3 {[%clk 0:03:02.5]} 7... Nbd7 {[%clk 0:02:47.9]} 8. f4 {[%clk 0:02:59.3]}
8... Nc5 {[%clk 0:02:43.9]} 9. O-O {[%clk 0:02:58.9]} 9... Be7 {[%clk
0:02:35.2]} 10. f5 {[%clk 0:02:56.6]} 10... Qc7 {[%clk 0:02:10.1]} 11. Kh1
{[%clk 0:02:49.3]} 11... b5 {[%clk 0:02:03.7]} 12. a3 {[%clk 0:02:44.1]} 12...
Nxb3 {[%clk 0:01:46.6]} 13. cxb3 {[%clk 0:02:42.7]} 13... Qb7 {[%clk 0:01:35.1]}
14. Bg5 {[%clk 0:02:38.3]} 14... O-O {[%clk 0:01:15]} 15. Qf3 {[%clk 0:02:24.7]}
15... Bd7 {[%clk 0:01:06.8]} 16. Rad1 {[%clk 0:01:48.1]} 16... b4 {[%clk
0:00:54.5]} 17. axb4 {[%clk 0:01:45.9]} 17... Qxb4 {[%clk 0:00:54.3]} 18. Qh3
{[%clk 0:01:30.2]} 18... Rfe8 {[%clk 0:00:27.2]} 19. fxe6 {[%clk 0:01:27.7]}
19... fxe6 {[%clk 0:00:26.4]} 20. Bxf6 {[%clk 0:01:02.1]} 20... Bxf6 {[%clk
0:00:25.3]} 21. Rxf6 {[%clk 0:01:00.7]} 21... gxf6 {[%clk 0:00:25.1]} 22. Nd5
{[%clk 0:00:53.8]} 22... exd5 {[%clk 0:00:20.7]} 23. Qxd7 {[%clk 0:00:54.2]}
23... Rxe4 {[%clk 0:00:17.6]} 24. Nf3 {[%clk 0:00:44.3]} 24... Rae8 {[%clk
0:00:17.5]} 25. h3 {[%clk 0:00:43]} 25... R4e7 {[%clk 0:00:16.7]} 26. Qf5 {[%clk
0:00:41.6]} 26... Qe4 {[%clk 0:00:16]} 27. Qh5 {[%clk 0:00:39.3]} 27... Qg6
{[%clk 0:00:15]} 28. Qxd5+ {[%clk 0:00:39]} 28... Qf7 {[%clk 0:00:14.5]} 29.
Qxd6 {[%clk 0:00:38.2]} 29... Re2 {[%clk 0:00:13.9]} 30. Qg3+ {[%clk 0:00:35.5]}
30... Qg7 {[%clk 0:00:13.5]} 31. Qxg7+ {[%clk 0:00:32.1]} 31... Kxg7 {[%clk
0:00:13.4]} 32. Rd7+ {[%clk 0:00:32.4]} 32... R8e7 {[%clk 0:00:13.6]} 33. Rd6
{[%clk 0:00:31.8]} 33... Rxb2 {[%clk 0:00:13.5]} 34. Nd4 {[%clk 0:00:28.4]}
34... Rb1+ {[%clk 0:00:11.5]} 35. Kh2 {[%clk 0:00:28.2]} 35... Kg6 {[%clk
0:00:11.8]} 36. Rxa6 {[%clk 0:00:23.9]} 36... Rd7 {[%clk 0:00:11.7]} 37. Nf3
{[%clk 0:00:23.6]} 37... Rdd1 {[%clk 0:00:11.3]} 38. Rb6 {[%clk 0:00:21.9]}
38... Rb2 {[%clk 0:00:10.9]} 39. Kg3 {[%clk 0:00:20.4]} 39... Rdb1 {[%clk
0:00:10.1]} 40. Nh4+ {[%clk 0:00:18.4]} 40... Kf7 {[%clk 0:00:09.5]} 41. Rb7+
{[%clk 0:00:16.2]} 41... Ke6 {[%clk 0:00:09.3]} 42. Rxh7 {[%clk 0:00:15.7]}
42... Rxb3+ {[%clk 0:00:09.2]} 43. Nf3 {[%clk 0:00:16.4]} 43... R1b2 {[%clk
0:00:07.9]} 44. Rg7 {[%clk 0:00:15.9]} 44... Ra3 {[%clk 0:00:07.6]} 45. h4
{[%clk 0:00:15.4]} 45... Raa2 {[%clk 0:00:07.2]} 46. Kh3 {[%clk 0:00:15.4]}
46... Kf5 {[%clk 0:00:06.4]} 47. h5 {[%clk 0:00:15.5]} 47... Ra1 {[%clk
0:00:05.1]} 48. Kh2 {[%clk 0:00:15.1]} 48... Rbb1 {[%clk 0:00:05.1]} 49. Nh4+
{[%clk 0:00:13.9]} 49... Ke6 {[%clk 0:00:04.5]} 50. h6 {[%clk 0:00:13]} 50...
Rh1+ {[%clk 0:00:04.3]} 51. Kg3 {[%clk 0:00:13.2]} 51... Ra2 {[%clk 0:00:04.6]}
52. h7 {[%clk 0:00:12.1]} 52... Ra3+ {[%clk 0:00:04.7]} 53. Nf3 {[%clk
0:00:11.3]} 53... Ra8 {[%clk 0:00:03.1]} 54. Nh2 {[%clk 0:00:10.6]} 54... Rh8
{[%clk 0:00:02.5]} 55. Kh3 {[%clk 0:00:06.6]} 55... Kf5 {[%clk 0:00:01.9]} 56.
g4+ {[%clk 0:00:06.6]} 1-0

[Event "*** Titled Tuesday Blitz"]
[Site "Chess.com"]
[Date "2020.05.05"]
[Round "8"]
[White "hansen"]
[Black "SirMittensofMittensville"]
[Result "1-0"]
[WhiteElo "2935"]
[BlackElo "2669"]
[TimeControl "180+1"]
[EndTime "11:36:33 PDT"]
[Termination "hansen won by checkmate"]

1. Nf3 {[%clk 0:02:59.6]} 1... e6 {[%clk 0:02:57.1]} 2. g3 {[%clk 0:02:59.8]}
2... d5 {[%clk 0:02:57.2]} 3. Bg2 {[%clk 0:02:59.7]} 3... Nf6 {[%clk 0:02:58.1]}
4. O-O {[%clk 0:02:58.5]} 4... b5 {[%clk 0:02:57.2]} 5. d3 {[%clk 0:02:54.1]}
5... c5 {[%clk 0:02:53.7]} 6. e4 {[%clk 0:02:53.2]} 6... Be7 {[%clk 0:02:50.6]}
7. exd5 {[%clk 0:02:51.6]} 7... exd5 {[%clk 0:02:47.5]} 8. d4 {[%clk 0:02:51.2]}
8... c4 {[%clk 0:02:47.3]} 9. Ne5 {[%clk 0:02:51.1]} 9... O-O {[%clk 0:02:47.2]}
10. Re1 {[%clk 0:02:51.3]} 10... Be6 {[%clk 0:02:45.2]} 11. Nc3 {[%clk
0:02:49.7]} 11... a6 {[%clk 0:02:41.6]} 12. Ne2 {[%clk 0:02:49.9]} 12... Bf5
{[%clk 0:02:33.5]} 13. a4 {[%clk 0:02:47.6]} 13... bxa4 {[%clk 0:02:00.2]} 14.
Nxc4 {[%clk 0:02:42.4]} 14... Nc6 {[%clk 0:01:54.9]} 15. Ne3 {[%clk 0:02:41.4]}
15... Be4 {[%clk 0:01:54.4]} 16. Rxa4 {[%clk 0:02:39.8]} 16... a5 {[%clk
0:01:50.2]} 17. c3 {[%clk 0:02:39.4]} 17... Rb8 {[%clk 0:01:49.3]} 18. Nf4
{[%clk 0:02:37.8]} 18... Bxg2 {[%clk 0:01:48.4]} 19. Kxg2 {[%clk 0:02:38.7]}
19... Qd7 {[%clk 0:01:46.4]} 20. Ra1 {[%clk 0:02:35]} 20... Rfd8 {[%clk
0:01:43.3]} 21. g4 {[%clk 0:02:32.1]} 21... h6 {[%clk 0:01:28.3]} 22. Qf3 {[%clk
0:02:25.2]} 22... Bf8 {[%clk 0:01:25.6]} 23. h4 {[%clk 0:02:24]} 23... Ne7
{[%clk 0:01:21.7]} 24. g5 {[%clk 0:02:20.6]} 24... hxg5 {[%clk 0:01:21.7]} 25.
hxg5 {[%clk 0:02:21.5]} 25... Ne4 {[%clk 0:01:22.4]} 26. g6 {[%clk 0:02:08.2]}
26... Nxg6 {[%clk 0:01:15.7]} 27. Nxg6 {[%clk 0:02:01.9]} 27... fxg6 {[%clk
0:01:16.6]} 28. Nxd5 {[%clk 0:02:01.5]} 28... Nxf2 {[%clk 0:01:05.1]} 29. Nf4
{[%clk 0:01:35.7]} 29... Ng4 {[%clk 0:01:00.5]} 30. Rxa5 {[%clk 0:01:23.1]}
30... Nf6 {[%clk 0:00:44.3]} 31. Nxg6 {[%clk 0:00:57.8]} 31... Rb5 {[%clk
0:00:38.8]} 32. Ne5 {[%clk 0:00:48.3]} 32... Qe8 {[%clk 0:00:33.9]} 33. Rxb5
{[%clk 0:00:43.7]} 33... Qxb5 {[%clk 0:00:34.8]} 34. Qc6 {[%clk 0:00:43.8]}
34... Qd5+ {[%clk 0:00:25.1]} 35. Qxd5+ {[%clk 0:00:42.9]} 35... Nxd5 {[%clk
0:00:26]} 36. c4 {[%clk 0:00:39.8]} 36... Nb4 {[%clk 0:00:25.7]} 37. d5 {[%clk
0:00:40.1]} 37... Bd6 {[%clk 0:00:23.5]} 38. Nf3 {[%clk 0:00:17]} 38... Rc8
{[%clk 0:00:20]} 39. b3 {[%clk 0:00:16.6]} 39... Rb8 {[%clk 0:00:20.6]} 40. Bd2
{[%clk 0:00:15.1]} 40... Nd3 {[%clk 0:00:20.1]} 41. Rb1 {[%clk 0:00:15.7]} 41...
Kf7 {[%clk 0:00:17.6]} 42. Kf1 {[%clk 0:00:15.2]} 42... Kf6 {[%clk 0:00:17.4]}
43. Ke2 {[%clk 0:00:15.4]} 43... Nc5 {[%clk 0:00:17.7]} 44. Bc3+ {[%clk
0:00:15.3]} 44... Kf5 {[%clk 0:00:17.8]} 45. Nd2 {[%clk 0:00:15.6]} 45... g5
{[%clk 0:00:17.4]} 46. Rf1+ {[%clk 0:00:14.9]} 46... Kg4 {[%clk 0:00:16.7]} 47.
b4 {[%clk 0:00:15.1]} 47... Na4 {[%clk 0:00:16.5]} 48. Ne4 {[%clk 0:00:14.3]}
48... Nxc3+ {[%clk 0:00:16]} 49. Nxc3 {[%clk 0:00:15.2]} 49... Rxb4 {[%clk
0:00:15.8]} 50. Kd3 {[%clk 0:00:13.5]} 50... Be5 {[%clk 0:00:14.9]} 51. Nb5
{[%clk 0:00:11.8]} 51... Bf4 {[%clk 0:00:13.5]} 52. d6 {[%clk 0:00:11]} 52...
Rb2 {[%clk 0:00:13.8]} 53. Ke4 {[%clk 0:00:07.9]} 53... Rd2 {[%clk 0:00:13.3]}
54. Rg1+ {[%clk 0:00:06.9]} 54... Kh3 {[%clk 0:00:13.5]} 55. c5 {[%clk
0:00:07.5]} 55... Kh2 {[%clk 0:00:13.3]} 56. Rg4 {[%clk 0:00:07.2]} 56... Re2+
{[%clk 0:00:14]} 57. Kd5 {[%clk 0:00:06.8]} 57... Kh3 {[%clk 0:00:14]} 58. Rg1
{[%clk 0:00:06.8]} 58... g4 {[%clk 0:00:14.3]} 59. Nd4 {[%clk 0:00:06.8]} 59...
Rd2 {[%clk 0:00:14.7]} 60. Ke4 {[%clk 0:00:07]} 60... Bh2 {[%clk 0:00:13]} 61.
Re1 {[%clk 0:00:04.9]} 61... g3 {[%clk 0:00:13.1]} 62. d7 {[%clk 0:00:05.1]}
62... g2 {[%clk 0:00:11.1]} 63. d8=Q {[%clk 0:00:05.4]} 63... Bg3 {[%clk
0:00:10.6]} 64. Qh8+ {[%clk 0:00:05.2]} 64... Bh4 {[%clk 0:00:11]} 65. Qc8+
{[%clk 0:00:05]} 65... Kh2 {[%clk 0:00:10.8]} 66. Qg4 {[%clk 0:00:04.5]} 66...
Bxe1 {[%clk 0:00:10.3]} 67. Nf3+ {[%clk 0:00:04.9]} 67... Kh1 {[%clk 0:00:10.4]}
68. Qh3# {[%clk 0:00:05.5]} 1-0

[Event "*** Titled Tuesday Blitz"]
[Site "Chess.com"]
[Date "2020.05.05"]
[Round "8"]
[White "Pomegranate988"]
[Black "StephenDedalus83"]
[Result "1-0"]
[WhiteElo "2492"]
[BlackElo "2661"]
[TimeControl "180+1"]
[EndTime "11:36:33 PDT"]
[Termination "Pomegranate988 won by resignation"]

1. d4 {[%clk 0:03:00.9]} 1... g6 {[%clk 0:02:59.2]} 2. Nf3 {[%clk 0:02:58.6]}
2... Bg7 {[%clk 0:02:59.4]} 3. g3 {[%clk 0:02:58.4]} 3... d6 {[%clk 0:02:59.3]}
4. Bg2 {[%clk 0:02:58.5]} 4... Nd7 {[%clk 0:02:59.3]} 5. O-O {[%clk 0:02:55.4]}
5... e5 {[%clk 0:02:59.3]} 6. c4 {[%clk 0:02:52.2]} 6... Ne7 {[%clk 0:02:57.7]}
7. Nc3 {[%clk 0:02:52.1]} 7... O-O {[%clk 0:02:53.4]} 8. dxe5 {[%clk 0:02:51.5]}
8... dxe5 {[%clk 0:02:52.7]} 9. Qc2 {[%clk 0:02:51.4]} 9... Nc6 {[%clk
0:02:51.4]} 10. e3 {[%clk 0:02:42]} 10... Nc5 {[%clk 0:02:42.6]} 11. Rd1 {[%clk
0:02:38.9]} 11... Qe8 {[%clk 0:02:38.4]} 12. Nd5 {[%clk 0:02:36.2]} 12... Bf5
{[%clk 0:02:37.8]} 13. Qe2 {[%clk 0:02:33.9]} 13... Rc8 {[%clk 0:02:34.3]} 14.
b4 {[%clk 0:02:28.2]} 14... Nd3 {[%clk 0:02:09.3]} 15. e4 {[%clk 0:02:10.3]}
15... Nxc1 {[%clk 0:02:08.4]} 16. Raxc1 {[%clk 0:02:09.6]} 16... Bg4 {[%clk
0:02:07.1]} 17. Qb2 {[%clk 0:01:58.8]} 17... Nd4 {[%clk 0:02:02.1]} 18. Rd3
{[%clk 0:01:42.6]} 18... c6 {[%clk 0:02:01.1]} 19. Nc3 {[%clk 0:01:33.8]} 19...
Be6 {[%clk 0:01:58.7]} 20. Ne2 {[%clk 0:01:26.6]} 20... Nxe2+ {[%clk 0:01:52.5]}
21. Qxe2 {[%clk 0:01:25.7]} 21... Qe7 {[%clk 0:01:52.6]} 22. c5 {[%clk
0:01:21.6]} 22... f6 {[%clk 0:01:49.5]} 23. Nd2 {[%clk 0:01:06.3]} 23... Qf7
{[%clk 0:01:41.1]} 24. a4 {[%clk 0:00:49.4]} 24... Bh6 {[%clk 0:01:36.9]} 25.
Rd1 {[%clk 0:00:47.8]} 25... Rfd8 {[%clk 0:01:33.5]} 26. Bf1 {[%clk 0:00:46.3]}
26... Rxd3 {[%clk 0:01:27.1]} 27. Qxd3 {[%clk 0:00:45.8]} 27... Qe7 {[%clk
0:01:27]} 28. Nc4 {[%clk 0:00:45.4]} 28... Bf8 {[%clk 0:01:24.6]} 29. Qc2 {[%clk
0:00:21.9]} 29... Rd8 {[%clk 0:01:19.8]} 30. Rxd8 {[%clk 0:00:21.1]} 30... Qxd8
{[%clk 0:01:19]} 31. Na5 {[%clk 0:00:21.7]} 31... Bc8 {[%clk 0:01:14.1]} 32.
Bc4+ {[%clk 0:00:20.6]} 32... Kg7 {[%clk 0:01:14.1]} 33. Qd3 {[%clk 0:00:20.1]}
33... Qxd3 {[%clk 0:01:10.4]} 34. Bxd3 {[%clk 0:00:20.6]} 34... Kf7 {[%clk
0:01:10.7]} 35. Bc4+ {[%clk 0:00:20.4]} 35... Ke8 {[%clk 0:01:10.5]} 36. Kf1
{[%clk 0:00:20.5]} 36... Kd8 {[%clk 0:01:09.5]} 37. Ke2 {[%clk 0:00:20.5]} 37...
Kc7 {[%clk 0:01:09.6]} 38. Kd3 {[%clk 0:00:20.8]} 38... b6 {[%clk 0:01:09.3]}
39. Nb3 {[%clk 0:00:20.8]} 39... Bh3 {[%clk 0:01:07.5]} 40. Kc3 {[%clk
0:00:19.4]} 40... Bg2 {[%clk 0:01:07.5]} 41. Bd3 {[%clk 0:00:19.1]} 41... h5
{[%clk 0:01:06.6]} 42. a5 {[%clk 0:00:18.5]} 42... Be7 {[%clk 0:00:54.5]} 43.
cxb6+ {[%clk 0:00:16.2]} 43... axb6 {[%clk 0:00:54.6]} 44. axb6+ {[%clk
0:00:15.3]} 44... Kxb6 {[%clk 0:00:54.6]} 45. Na5 {[%clk 0:00:15.9]} 45... Bh3
{[%clk 0:00:50]} 46. Nc4+ {[%clk 0:00:15.8]} 46... Kc7 {[%clk 0:00:50]} 47. Na5
{[%clk 0:00:15.3]} 47... Bd7 {[%clk 0:00:42.9]} 48. Bc4 {[%clk 0:00:15.3]} 48...
f5 {[%clk 0:00:39.3]} 49. Bf7 {[%clk 0:00:14.1]} 49... fxe4 {[%clk 0:00:32.7]}
50. Bxg6 {[%clk 0:00:13.6]} 50... e3 {[%clk 0:00:31.9]} 51. fxe3 {[%clk
0:00:12.5]} 51... h4 {[%clk 0:00:32]} 52. Nc4 {[%clk 0:00:12.6]} 52... Bf6
{[%clk 0:00:31]} 53. e4 {[%clk 0:00:12.4]} 53... hxg3 {[%clk 0:00:30.2]} 54.
hxg3 {[%clk 0:00:12.7]} 54... Bg4 {[%clk 0:00:30.6]} 55. Ne3 {[%clk 0:00:13]}
55... Bf3 {[%clk 0:00:30.6]} 56. Bf5 {[%clk 0:00:11.3]} 56... Kb6 {[%clk
0:00:27.8]} 57. Nc4+ {[%clk 0:00:11.7]} 57... Kb5 {[%clk 0:00:26.8]} 58. Nd6+
{[%clk 0:00:11.7]} 58... Ka4 {[%clk 0:00:26.8]} 59. Bd7 {[%clk 0:00:11.2]} 59...
Be7 {[%clk 0:00:25.8]} 60. Bxc6+ {[%clk 0:00:11.2]} 60... Ka3 {[%clk 0:00:26]}
61. Nc4+ {[%clk 0:00:11.6]} 61... Ka2 {[%clk 0:00:26.3]} 62. b5 {[%clk
0:00:11.9]} 62... Bc5 {[%clk 0:00:23.9]} 63. b6 {[%clk 0:00:12.1]} 63... Bd4+
{[%clk 0:00:24]} 64. Kb4 {[%clk 0:00:11.6]} 64... Be2 {[%clk 0:00:22.8]} 65. b7
{[%clk 0:00:11.9]} 65... Ba7 {[%clk 0:00:22.8]} 66. Nxe5 {[%clk 0:00:12]} 1-0